[Event "Titled Tuesday Blitz May 9 Late 2023"]
[White "Ng, Gary"]
[Black "Koellner, Ruben Gideon"]
[WhiteFideId "2604914"]
[BlackFideId "12993093"]
[WhiteElo "2313"]
[BlackElo "2314"]
[Result "0-1"]
[Round "01"]
[TimeControl "180+2"]
[Date "2023.05.09"]
[WhiteClock "0:00:16"]
[BlackClock "0:00:40"]

1. d4 {[%clk 0:03:00]}  d6 {[%clk 0:02:59]} 2. e4 {[%clk 0:02:59]}  Nf6 {[%clk 0:02:58]} 3. Nc3 {[%clk 0:02:59]}  e5 {[%clk 0:02:58]} 4. dxe5 {[%clk 0:02:59]}  dxe5 {[%clk 0:02:59]} 5. Qxd8+ {[%clk 0:02:59]}  Kxd8 {[%clk 0:02:59]} 6. Bg5 {[%clk 0:03:00]}  Be6 {[%clk 0:02:59]} 7. O-O-O+ {[%clk 0:03:00]}  Nd7 {[%clk 0:02:59]} 8. Nf3 {[%clk 0:03:00]}  Bd6 {[%clk 0:02:59]} 9. h3 {[%clk 0:03:00]}  h6 {[%clk 0:02:58]} 10. Be3 {[%clk 0:02:58]}  Ke7 {[%clk 0:02:58]} 11. Nb5 {[%clk 0:02:57]}  a6 {[%clk 0:02:58]} 12. Nxd6 {[%clk 0:02:57]}  cxd6 {[%clk 0:02:59]} 13. Kb1 {[%clk 0:02:53]}  Nxe4 {[%clk 0:02:58]} 14. Bd3 {[%clk 0:02:47]}  Nec5 {[%clk 0:02:56]} 15. Be2 {[%clk 0:02:46]}  Rac8 {[%clk 0:02:55]} 16. Rhe1 {[%clk 0:02:46]}  b5 {[%clk 0:02:51]} 17. g4 {[%clk 0:02:35]}  d5 {[%clk 0:02:38]} 18. Nh4 {[%clk 0:02:21]}  d4 {[%clk 0:02:35]} 19. Bd2 {[%clk 0:02:17]}  Ne4 {[%clk 0:02:27]} 20. Bb4+ {[%clk 0:02:16]}  Nd6 {[%clk 0:02:18]} 21. Bf3 {[%clk 0:02:13]}  Rc4 {[%clk 0:02:05]} 22. c3 {[%clk 0:02:09]}  Rhc8 {[%clk 0:01:35]} 23. Bb7 {[%clk 0:02:00]}  R8c7 {[%clk 0:01:18]} 24. Bxa6 {[%clk 0:02:00]}  Rxb4 {[%clk 0:01:16]} 25. cxb4 {[%clk 0:01:58]}  Ra7 {[%clk 0:01:17]} 26. Bxb5 {[%clk 0:01:29]}  Bxa2+ {[%clk 0:01:16]} 27. Kc2 {[%clk 0:01:22]}  Rc7+ {[%clk 0:01:10]} 28. Kd2 {[%clk 0:01:08]}  Nxb5 {[%clk 0:01:10]} 29. f4 {[%clk 0:00:59]}  f6 {[%clk 0:01:00]} 30. fxe5 {[%clk 0:00:58]}  fxe5 {[%clk 0:00:54]} 31. Ng6+ {[%clk 0:00:48]}  Kd6 {[%clk 0:00:52]} 32. Ra1 {[%clk 0:00:48]}  Bd5 {[%clk 0:00:49]} 33. Ra6+ {[%clk 0:00:48]}  Rc6 {[%clk 0:00:49]} 34. Ra5 {[%clk 0:00:37]}  Rb6 {[%clk 0:00:45]} 35. h4 {[%clk 0:00:24]}  e4 {[%clk 0:00:44]} 36. g5 {[%clk 0:00:19]}  e3+ {[%clk 0:00:44]} 37. Kd3 {[%clk 0:00:20]}  hxg5 {[%clk 0:00:41]} 38. hxg5 {[%clk 0:00:20]}  Ne5+ {[%clk 0:00:41]} 39. Ke2 {[%clk 0:00:16]}  Nxg6 {[%clk 0:00:40]} 0-1


[Site "https://www.chess.com"]

[Event "Titled Tuesday Blitz May 9 Late 2023"]
[White "Brueckner, Thomas"]
[Black "Omranalhosani21"]
[WhiteFideId "4600452"]
[WhiteElo "2322"]
[BlackElo "2612"]
[Result "1/2-1/2"]
[Round "01"]
[TimeControl "180+2"]
[Date "2023.05.09"]
[WhiteClock "0:00:23"]
[BlackClock "0:00:08"]

1. Nf3 {[%clk 0:02:59]}  d5 {[%clk 0:02:59]} 2. g3 {[%clk 0:02:58]}  Nd7 {[%clk 0:02:59]} 3. c4 {[%clk 0:02:57]}  dxc4 {[%clk 0:02:59]} 4. Bg2 {[%clk 0:02:54]}  Nb6 {[%clk 0:02:57]} 5. Na3 {[%clk 0:02:46]}  c6 {[%clk 0:02:48]} 6. Qc2 {[%clk 0:02:36]}  Qd5 {[%clk 0:02:28]} 7. Nh4 {[%clk 0:02:10]}  Qc5 {[%clk 0:02:17]} 8. b3 {[%clk 0:02:00]}  e5 {[%clk 0:02:06]} 9. Nxc4 {[%clk 0:01:54]}  Nxc4 {[%clk 0:02:04]} 10. Qxc4 {[%clk 0:01:49]}  Qxc4 {[%clk 0:02:00]} 11. bxc4 {[%clk 0:01:50]}  Bc5 {[%clk 0:01:54]} 12. Bb2 {[%clk 0:01:39]}  f6 {[%clk 0:01:52]} 13. O-O {[%clk 0:01:30]}  Ne7 {[%clk 0:01:47]} 14. e3 {[%clk 0:01:26]}  g5 {[%clk 0:01:18]} 15. Nf3 {[%clk 0:01:24]}  g4 {[%clk 0:00:44]} 16. Nh4 {[%clk 0:01:06]}  Be6 {[%clk 0:00:44]} 17. d4 {[%clk 0:01:03]}  Bd6 {[%clk 0:00:44]} 18. c5 {[%clk 0:00:49]}  Bc7 {[%clk 0:00:41]} 19. dxe5 {[%clk 0:00:46]}  Bxe5 {[%clk 0:00:35]} 20. Bxe5 {[%clk 0:00:46]}  fxe5 {[%clk 0:00:35]} 21. Rab1 {[%clk 0:00:43]}  O-O-O {[%clk 0:00:34]} 22. Rb2 {[%clk 0:00:36]}  Kc7 {[%clk 0:00:28]} 23. Be4 {[%clk 0:00:34]}  Bc4 {[%clk 0:00:20]} 24. Rfb1 {[%clk 0:00:34]}  Ba6 {[%clk 0:00:20]} 25. Nf5 {[%clk 0:00:33]}  Nxf5 {[%clk 0:00:20]} 26. Bxf5 {[%clk 0:00:33]}  h5 {[%clk 0:00:20]} 27. Be4 {[%clk 0:00:33]}  Rh6 {[%clk 0:00:19]} 28. Rc1 {[%clk 0:00:28]}  Rf6 {[%clk 0:00:13]} 29. a4 {[%clk 0:00:26]}  Re6 {[%clk 0:00:11]} 30. a5 {[%clk 0:00:26]}  Rf6 {[%clk 0:00:11]} 31. Rb3 {[%clk 0:00:24]}  Re6 {[%clk 0:00:10]} 32. Rb2 {[%clk 0:00:23]}  Rf6 {[%clk 0:00:10]} 33. Ra2 {[%clk 0:00:23]}  Rd7 {[%clk 0:00:08]} 34. Rb2 {[%clk 0:00:23]}  Rd8 {[%clk 0:00:08]} 1/2-1/2


[Site "https://www.chess.com"]

[Event "Titled Tuesday Blitz May 9 Late 2023"]
[White "Gold_Ocean"]
[Black "Ward, Ieuan C"]
[BlackFideId "406627"]
[WhiteElo "2609"]
[BlackElo "2298"]
[Result "0-1"]
[Round "01"]
[TimeControl "180+2"]
[Date "2023.05.09"]
[WhiteClock "0:00:13"]
[BlackClock "0:00:17"]

1. b3 {[%clk 0:02:52]}  e5 {[%clk 0:02:58]} 2. Bb2 {[%clk 0:02:52]}  Nc6 {[%clk 0:02:58]} 3. e3 {[%clk 0:02:52]}  Nf6 {[%clk 0:02:58]} 4. Bb5 {[%clk 0:02:53]}  Bd6 {[%clk 0:02:58]} 5. Ne2 {[%clk 0:02:52]}  O-O {[%clk 0:02:57]} 6. d3 {[%clk 0:02:52]}  a6 {[%clk 0:02:54]} 7. Bxc6 {[%clk 0:02:52]}  dxc6 {[%clk 0:02:55]} 8. c4 {[%clk 0:02:53]}  Re8 {[%clk 0:02:51]} 9. Nbc3 {[%clk 0:02:53]}  Qe7 {[%clk 0:02:47]} 10. Qc2 {[%clk 0:02:53]}  Bf5 {[%clk 0:02:45]} 11. O-O-O {[%clk 0:02:53]}  b5 {[%clk 0:02:41]} 12. Ng3 {[%clk 0:02:52]}  Bg6 {[%clk 0:02:35]} 13. e4 {[%clk 0:02:45]}  a5 {[%clk 0:02:30]} 14. cxb5 {[%clk 0:02:44]}  cxb5 {[%clk 0:02:25]} 15. Nxb5 {[%clk 0:02:44]}  a4 {[%clk 0:02:23]} 16. bxa4 {[%clk 0:02:44]}  Nd7 {[%clk 0:02:04]} 17. Kb1 {[%clk 0:02:27]}  Nc5 {[%clk 0:02:01]} 18. Nxd6 {[%clk 0:02:18]}  cxd6 {[%clk 0:01:59]} 19. Ka1 {[%clk 0:02:19]}  Rxa4 {[%clk 0:01:55]} 20. d4 {[%clk 0:02:07]}  exd4 {[%clk 0:01:48]} 21. Rxd4 {[%clk 0:02:08]}  Rea8 {[%clk 0:01:32]} 22. Rxa4 {[%clk 0:02:04]}  Nxa4 {[%clk 0:01:23]} 23. Bd4 {[%clk 0:01:58]}  f6 {[%clk 0:01:20]} 24. Nf5 {[%clk 0:01:51]}  Qe6 {[%clk 0:01:14]} 25. Rc1 {[%clk 0:01:38]}  Bf7 {[%clk 0:01:02]} 26. a3 {[%clk 0:01:26]}  Nc5 {[%clk 0:00:43]} 27. Bxc5 {[%clk 0:01:10]}  dxc5 {[%clk 0:00:43]} 28. Qb2 {[%clk 0:01:10]}  g6 {[%clk 0:00:37]} 29. Ng3 {[%clk 0:01:00]}  Kg7 {[%clk 0:00:35]} 30. Rxc5 {[%clk 0:00:55]}  Rb8 {[%clk 0:00:33]} 31. Qc2 {[%clk 0:00:49]}  Rb3 {[%clk 0:00:30]} 32. Ra5 {[%clk 0:00:42]}  Qb6 {[%clk 0:00:27]} 33. Ra4 {[%clk 0:00:37]}  Qd6 {[%clk 0:00:23]} 34. Qc1 {[%clk 0:00:13]}  Qe5+ {[%clk 0:00:22]} 35. Ka2 {[%clk 0:00:11]}  Rc3+ {[%clk 0:00:20]} 36. Kb1 {[%clk 0:00:12]}  Rxc1+ {[%clk 0:00:20]} 37. Kxc1 {[%clk 0:00:12]}  Qf4+ {[%clk 0:00:20]} 38. Kc2 {[%clk 0:00:09]}  Qxf2+ {[%clk 0:00:20]} 39. Kc3 {[%clk 0:00:09]}  Qxg2 {[%clk 0:00:19]} 40. Rd4 {[%clk 0:00:09]}  Qxh2 {[%clk 0:00:19]} 41. Nf1 {[%clk 0:00:10]}  Qf2 {[%clk 0:00:19]} 42. Nd2 {[%clk 0:00:10]}  Qe3+ {[%clk 0:00:19]} 43. Rd3 {[%clk 0:00:09]}  Qc5+ {[%clk 0:00:19]} 44. Kb2 {[%clk 0:00:09]}  h5 {[%clk 0:00:19]} 45. Rc3 {[%clk 0:00:07]}  Qb5+ {[%clk 0:00:18]} 46. Kc2 {[%clk 0:00:07]}  h4 {[%clk 0:00:18]} 47. Nf3 {[%clk 0:00:05]}  Qe2+ {[%clk 0:00:17]} 48. Kc1 {[%clk 0:00:03]}  Qxe4 {[%clk 0:00:17]} 49. a4 {[%clk 0:00:02]}  h3 {[%clk 0:00:16]} 50. a5 {[%clk 0:00:02]}  Qf4+ {[%clk 0:00:15]} 51. Kb2 {[%clk 0:00:02]}  h2 {[%clk 0:00:16]} 52. Nxh2 {[%clk 0:00:02]}  Qxh2+ {[%clk 0:00:16]} 53. Ka3 {[%clk 0:00:03]}  Qd6+ {[%clk 0:00:15]} 54. Ka4 {[%clk 0:00:03]}  Be8+ {[%clk 0:00:15]} 55. Kb3 {[%clk 0:00:03]}  Qd5+ {[%clk 0:00:14]} 56. Kb4 {[%clk 0:00:03]}  Qd4+ {[%clk 0:00:14]} 57. Rc4 {[%clk 0:00:04]}  Qb2+ {[%clk 0:00:13]} 58. Kc5 {[%clk 0:00:04]}  Qb5+ {[%clk 0:00:13]} 59. Kd4 {[%clk 0:00:04]}  Qxa5 {[%clk 0:00:14]} 60. Rc5 {[%clk 0:00:05]}  Qxc5+ {[%clk 0:00:13]} 61. Kxc5 {[%clk 0:00:06]}  g5 {[%clk 0:00:13]} 62. Kd4 {[%clk 0:00:06]}  f5 {[%clk 0:00:13]} 63. Ke3 {[%clk 0:00:07]}  Bd7 {[%clk 0:00:14]} 64. Kf3 {[%clk 0:00:08]}  Kf6 {[%clk 0:00:14]} 65. Kg3 {[%clk 0:00:09]}  f4+ {[%clk 0:00:14]} 66. Kf3 {[%clk 0:00:10]}  Kf5 {[%clk 0:00:15]} 67. Kf2 {[%clk 0:00:10]}  g4 {[%clk 0:00:16]} 68. Kg2 {[%clk 0:00:09]}  Ke4 {[%clk 0:00:17]} 69. Kf2 {[%clk 0:00:10]}  g3+ {[%clk 0:00:17]} 70. Kg1 {[%clk 0:00:10]}  Bc6 {[%clk 0:00:18]} 71. Kf1 {[%clk 0:00:10]}  Ke3 {[%clk 0:00:18]} 72. Kg1 {[%clk 0:00:11]}  f3 {[%clk 0:00:18]} 73. Kf1 {[%clk 0:00:12]}  Kf4 {[%clk 0:00:18]} 74. Ke1 {[%clk 0:00:11]}  Bb5 {[%clk 0:00:18]} 75. Kd2 {[%clk 0:00:11]}  g2 {[%clk 0:00:19]} 76. Kc3 {[%clk 0:00:12]}  g1=Q {[%clk 0:00:17]} 77. Kb4 {[%clk 0:00:13]} 0-1


[Site "https://www.chess.com"]

[Event "Titled Tuesday Blitz May 9 Late 2023"]
[White "Rosenberg, Evan S"]
[Black "Piesik, Piotr"]
[WhiteFideId "2019299"]
[BlackFideId "1136194"]
[WhiteElo "2294"]
[BlackElo "2299"]
[Result "0-1"]
[Round "01"]
[TimeControl "180+2"]
[Date "2023.05.09"]
[WhiteClock "0:00:00"]
[BlackClock "0:01:51"]

1. d4 {[%clk 0:03:00]}  c5 {[%clk 0:02:58]} 2. d5 {[%clk 0:03:00]}  e5 {[%clk 0:02:58]} 3. e4 {[%clk 0:02:55]}  d6 {[%clk 0:02:58]} 4. Nc3 {[%clk 0:02:55]}  Be7 {[%clk 0:02:58]} 5. g3 {[%clk 0:02:51]}  Bg5 {[%clk 0:02:58]} 6. h4 {[%clk 0:02:49]}  Bxc1 {[%clk 0:02:57]} 7. Qxc1 {[%clk 0:02:48]}  Ne7 {[%clk 0:02:58]} 8. Bh3 {[%clk 0:02:47]}  O-O {[%clk 0:02:57]} 9. Bxc8 {[%clk 0:02:46]}  Qxc8 {[%clk 0:02:58]} 10. Kf1 {[%clk 0:02:46]}  f5 {[%clk 0:02:57]} 11. Kg2 {[%clk 0:02:38]}  Nd7 {[%clk 0:02:56]} 12. f3 {[%clk 0:02:36]}  Nf6 {[%clk 0:02:55]} 13. Nh3 {[%clk 0:02:34]}  h6 {[%clk 0:02:50]} 14. Qe3 {[%clk 0:02:13]}  Ng6 {[%clk 0:02:46]} 15. exf5 {[%clk 0:01:18]}  Qxf5 {[%clk 0:02:47]} 16. Rac1 {[%clk 0:01:07]}  Rae8 {[%clk 0:02:37]} 17. Rhf1 {[%clk 0:01:06]}  a6 {[%clk 0:02:30]} 18. a4 {[%clk 0:01:05]}  Qd7 {[%clk 0:02:27]} 19. b3 {[%clk 0:01:03]}  b5 {[%clk 0:02:26]} 20. axb5 {[%clk 0:01:03]}  axb5 {[%clk 0:02:27]} 21. Rcd1 {[%clk 0:01:00]}  Ne7 {[%clk 0:02:23]} 22. Nf2 {[%clk 0:00:56]}  Nf5 {[%clk 0:02:22]} 23. Qe2 {[%clk 0:00:52]}  b4 {[%clk 0:02:16]} 24. Nce4 {[%clk 0:00:46]}  Nh5 {[%clk 0:02:16]} 25. Ng4 {[%clk 0:00:40]}  Nfxg3 {[%clk 0:02:09]} 26. Nxg3 {[%clk 0:00:14]}  Nf4+ {[%clk 0:02:09]} 27. Kh2 {[%clk 0:00:15]}  Nxe2 {[%clk 0:02:09]} 28. Nxe2 {[%clk 0:00:16]}  e4 {[%clk 0:02:04]} 29. Rg1 {[%clk 0:00:10]}  Rxf3 {[%clk 0:02:02]} 30. Rg2 {[%clk 0:00:08]}  Kh8 {[%clk 0:01:56]} 31. Rdg1 {[%clk 0:00:00]}  Qf5 {[%clk 0:01:51]} 0-1


[Site "https://www.chess.com"]

[Event "Titled Tuesday Blitz May 9 Late 2023"]
[White "MKlose11"]
[Black "Georg, Heinz"]
[BlackFideId "4607295"]
[WhiteElo "2606"]
[BlackElo "2293"]
[Result "1-0"]
[Round "01"]
[TimeControl "180+2"]
[Date "2023.05.09"]
[WhiteClock "0:00:52"]
[BlackClock "0:00:15"]

1. e4 {[%clk 0:02:54]}  c5 {[%clk 0:02:59]} 2. Nc3 {[%clk 0:02:52]}  Nc6 {[%clk 0:02:59]} 3. g3 {[%clk 0:02:48]}  g6 {[%clk 0:02:51]} 4. Bg2 {[%clk 0:02:48]}  Bg7 {[%clk 0:02:52]} 5. d3 {[%clk 0:02:48]}  Rb8 {[%clk 0:02:52]} 6. Be3 {[%clk 0:02:45]}  d6 {[%clk 0:02:46]} 7. Qd2 {[%clk 0:02:42]}  b5 {[%clk 0:02:42]} 8. Nge2 {[%clk 0:02:39]}  Nf6 {[%clk 0:02:34]} 9. h3 {[%clk 0:02:39]}  Bd7 {[%clk 0:02:28]} 10. Bh6 {[%clk 0:02:38]}  O-O {[%clk 0:02:24]} 11. Bxg7 {[%clk 0:02:37]}  Kxg7 {[%clk 0:02:25]} 12. O-O {[%clk 0:02:38]}  a5 {[%clk 0:02:16]} 13. f4 {[%clk 0:02:38]}  a4 {[%clk 0:02:13]} 14. Nd1 {[%clk 0:02:31]}  Qa5 {[%clk 0:02:05]} 15. Qxa5 {[%clk 0:02:25]}  Nxa5 {[%clk 0:02:06]} 16. Ne3 {[%clk 0:02:25]}  e6 {[%clk 0:01:58]} 17. g4 {[%clk 0:02:23]}  Bc6 {[%clk 0:01:54]} 18. Ng3 {[%clk 0:02:23]}  d5 {[%clk 0:01:51]} 19. g5 {[%clk 0:02:21]}  Nd7 {[%clk 0:01:44]} 20. exd5 {[%clk 0:02:21]}  exd5 {[%clk 0:01:45]} 21. Nxd5 {[%clk 0:02:21]}  Bxd5 {[%clk 0:01:33]} 22. Bxd5 {[%clk 0:02:21]}  Nb6 {[%clk 0:01:33]} 23. Be4 {[%clk 0:02:19]}  f5 {[%clk 0:01:31]} 24. gxf6+ {[%clk 0:02:16]}  Rxf6 {[%clk 0:01:30]} 25. f5 {[%clk 0:02:17]}  b4 {[%clk 0:01:18]} 26. fxg6 {[%clk 0:02:12]}  hxg6 {[%clk 0:01:19]} 27. Rxf6 {[%clk 0:02:12]}  Kxf6 {[%clk 0:01:15]} 28. Rf1+ {[%clk 0:02:13]}  Kg7 {[%clk 0:01:15]} 29. Ne2 {[%clk 0:02:12]}  b3 {[%clk 0:01:12]} 30. axb3 {[%clk 0:02:10]}  axb3 {[%clk 0:01:13]} 31. cxb3 {[%clk 0:01:58]}  Nxb3 {[%clk 0:01:13]} 32. Nf4 {[%clk 0:01:58]}  c4 {[%clk 0:01:06]} 33. Ne6+ {[%clk 0:01:39]}  Kh6 {[%clk 0:00:59]} 34. Rf4 {[%clk 0:01:33]}  g5 {[%clk 0:00:46]} 35. Rf6+ {[%clk 0:01:32]}  Kh5 {[%clk 0:00:46]} 36. Kg2 {[%clk 0:00:55]}  cxd3 {[%clk 0:00:15]} 37. Ng7+ {[%clk 0:00:52]}  Kh4 {[%clk 0:00:15]} 38. Rh6# {[%clk 0:00:52]} 1-0


[Site "https://www.chess.com"]

[Event "Titled Tuesday Blitz May 9 Late 2023"]
[White "Nastase, Robert-Paul"]
[Black "Wadsworth, Matthew J"]
[WhiteFideId "1221175"]
[BlackFideId "415804"]
[WhiteElo "2175"]
[BlackElo "2347"]
[Result "0-1"]
[Round "01"]
[TimeControl "180+2"]
[Date "2023.05.09"]
[WhiteClock "0:00:00"]
[BlackClock "0:00:03"]

1. e4 {[%clk 0:02:50]}  c5 {[%clk 0:02:57]} 2. Nc3 {[%clk 0:02:49]}  e6 {[%clk 0:02:57]} 3. d4 {[%clk 0:02:41]}  cxd4 {[%clk 0:02:56]} 4. Qxd4 {[%clk 0:02:41]}  Nc6 {[%clk 0:02:56]} 5. Qd3 {[%clk 0:02:42]}  Nf6 {[%clk 0:02:54]} 6. Qg3 {[%clk 0:02:37]}  d5 {[%clk 0:02:34]} 7. exd5 {[%clk 0:02:12]}  Nxd5 {[%clk 0:02:30]} 8. Bd2 {[%clk 0:02:05]}  Bd6 {[%clk 0:02:00]} 9. Qxg7 {[%clk 0:02:02]}  Be5 {[%clk 0:02:00]} 10. Qh6 {[%clk 0:02:02]}  Nxc3 {[%clk 0:01:54]} 11. Bxc3 {[%clk 0:02:02]}  Bxc3+ {[%clk 0:01:54]} 12. bxc3 {[%clk 0:02:03]}  Bd7 {[%clk 0:01:41]} 13. Bd3 {[%clk 0:01:53]}  Qa5 {[%clk 0:01:40]} 14. Ne2 {[%clk 0:01:52]}  O-O-O {[%clk 0:01:35]} 15. O-O {[%clk 0:01:48]}  Ne5 {[%clk 0:01:33]} 16. Qh5 {[%clk 0:01:28]}  Bc6 {[%clk 0:01:32]} 17. Nf4 {[%clk 0:00:44]}  Rdg8 {[%clk 0:01:24]} 18. Kh1 {[%clk 0:00:23]}  h6 {[%clk 0:01:10]} 19. h4 {[%clk 0:00:20]}  Rg4 {[%clk 0:00:56]} 20. Rae1 {[%clk 0:00:19]}  f5 {[%clk 0:00:41]} 21. Bxf5 {[%clk 0:00:12]}  exf5 {[%clk 0:00:14]} 22. Qxf5+ {[%clk 0:00:11]}  Kb8 {[%clk 0:00:12]} 23. Rxe5 {[%clk 0:00:09]}  Rxh4+ {[%clk 0:00:11]} 24. Kg1 {[%clk 0:00:09]}  Qxc3 {[%clk 0:00:09]} 25. Nh3 {[%clk 0:00:05]}  Rg8 {[%clk 0:00:06]} 26. f3 {[%clk 0:00:05]}  Qd4+ {[%clk 0:00:05]} 27. Kh2 {[%clk 0:00:05]}  Qc4 {[%clk 0:00:03]} 28. Re7 {[%clk 0:00:03]}  Qxf1 {[%clk 0:00:03]} 29. Qe5+ {[%clk 0:00:00]}  Ka8 {[%clk 0:00:03]} 0-1


[Site "https://www.chess.com"]

[Event "Titled Tuesday Blitz May 9 Late 2023"]
[White "Bueno, Alfeu Junior Varela"]
[Black "Kim, Sergey"]
[WhiteFideId "2108879"]
[BlackFideId "13700570"]
[WhiteElo "2175"]
[BlackElo "2602"]
[Result "0-1"]
[Round "01"]
[TimeControl "180+2"]
[Date "2023.05.09"]
[WhiteClock "0:00:00"]
[BlackClock "0:00:13"]

1. e4 {[%clk 0:02:58]}  e5 {[%clk 0:02:28]} 2. Nc3 {[%clk 0:02:57]}  Nf6 {[%clk 0:02:16]} 3. f4 {[%clk 0:02:56]}  d5 {[%clk 0:02:16]} 4. fxe5 {[%clk 0:02:57]}  Nxe4 {[%clk 0:02:16]} 5. Qf3 {[%clk 0:02:57]}  Nxc3 {[%clk 0:02:15]} 6. dxc3 {[%clk 0:02:58]}  c5 {[%clk 0:02:15]} 7. Bf4 {[%clk 0:02:58]}  Be6 {[%clk 0:02:14]} 8. O-O-O {[%clk 0:02:58]}  Qa5 {[%clk 0:02:14]} 9. c4 {[%clk 0:02:37]}  Qxa2 {[%clk 0:01:48]} 10. cxd5 {[%clk 0:02:36]}  Bd7 {[%clk 0:01:47]} 11. Qa3 {[%clk 0:02:32]}  Qxa3 {[%clk 0:01:45]} 12. bxa3 {[%clk 0:02:33]}  Na6 {[%clk 0:01:37]} 13. e6 {[%clk 0:02:11]}  fxe6 {[%clk 0:01:35]} 14. dxe6 {[%clk 0:02:12]}  Bc6 {[%clk 0:01:34]} 15. Nf3 {[%clk 0:02:01]}  c4 {[%clk 0:01:28]} 16. Bxc4 {[%clk 0:01:41]}  Bxa3+ {[%clk 0:01:26]} 17. Kb1 {[%clk 0:01:41]}  Rc8 {[%clk 0:01:20]} 18. Ne5 {[%clk 0:01:11]}  Nc7 {[%clk 0:00:54]} 19. Nxc6 {[%clk 0:01:02]}  bxc6 {[%clk 0:00:54]} 20. Rd7 {[%clk 0:01:01]}  Nd5 {[%clk 0:00:51]} 21. Bxd5 {[%clk 0:00:52]}  cxd5 {[%clk 0:00:50]} 22. Rxa7 {[%clk 0:00:51]}  Bc5 {[%clk 0:00:42]} 23. Rxg7 {[%clk 0:00:49]}  Rf8 {[%clk 0:00:38]} 24. Be5 {[%clk 0:00:41]}  Rc6 {[%clk 0:00:35]} 25. e7 {[%clk 0:00:35]}  Bxe7 {[%clk 0:00:30]} 26. Rxh7 {[%clk 0:00:32]}  Rf2 {[%clk 0:00:28]} 27. Re1 {[%clk 0:00:24]}  Re6 {[%clk 0:00:24]} 28. g4 {[%clk 0:00:17]}  Bf6 {[%clk 0:00:22]} 29. Rh6 {[%clk 0:00:11]}  Kf7 {[%clk 0:00:19]} 30. Rh5 {[%clk 0:00:06]}  Kg6 {[%clk 0:00:15]} 31. Kc1 {[%clk 0:00:03]}  Bg5+ {[%clk 0:00:15]} 32. Kb2 {[%clk 0:00:03]}  Rc6 {[%clk 0:00:15]} 33. Rd1 {[%clk 0:00:01]}  Rfxc2+ {[%clk 0:00:13]} 34. Kb3 {[%clk 0:00:01]}  R2c5 {[%clk 0:00:13]} 35. Bd4 {[%clk 0:00:01]}  Rb5+ {[%clk 0:00:13]} 36. Ka4 {[%clk 0:00:00]}  Rb7 {[%clk 0:00:13]} 0-1


[Site "https://www.chess.com"]

[Event "Titled Tuesday Blitz May 9 Late 2023"]
[White "Kourkoulos-Arditis, Stamatis"]
[Black "Pace, Christopher"]
[WhiteFideId "4221990"]
[BlackFideId "2610167"]
[WhiteElo "2400"]
[BlackElo "2283"]
[Result "1-0"]
[Round "01"]
[TimeControl "180+2"]
[Date "2023.05.09"]
[WhiteClock "0:02:08"]
[BlackClock "0:00:43"]

1. Nf3 {[%clk 0:02:59]}  g6 {[%clk 0:02:53]} 2. g3 {[%clk 0:02:58]}  Bg7 {[%clk 0:02:41]} 3. c4 {[%clk 0:02:57]}  e5 {[%clk 0:02:41]} 4. Nc3 {[%clk 0:02:57]}  Nc6 {[%clk 0:02:34]} 5. Bg2 {[%clk 0:02:56]}  Nge7 {[%clk 0:02:34]} 6. O-O {[%clk 0:02:56]}  O-O {[%clk 0:02:34]} 7. d3 {[%clk 0:02:56]}  h6 {[%clk 0:02:17]} 8. Rb1 {[%clk 0:02:49]}  a5 {[%clk 0:02:17]} 9. a3 {[%clk 0:02:47]}  d5 {[%clk 0:02:16]} 10. cxd5 {[%clk 0:02:42]}  Nxd5 {[%clk 0:02:17]} 11. Nxd5 {[%clk 0:02:42]}  Qxd5 {[%clk 0:02:16]} 12. Be3 {[%clk 0:02:43]}  a4 {[%clk 0:02:13]} 13. Nd4 {[%clk 0:02:40]}  Qd7 {[%clk 0:02:07]} 14. Nxc6 {[%clk 0:02:39]}  bxc6 {[%clk 0:02:07]} 15. Qc1 {[%clk 0:02:39]}  Ra6 {[%clk 0:02:03]} 16. Bxh6 {[%clk 0:02:39]}  Re8 {[%clk 0:01:55]} 17. Bxg7 {[%clk 0:02:39]}  Kxg7 {[%clk 0:01:56]} 18. Qc3 {[%clk 0:02:37]}  Rb6 {[%clk 0:01:51]} 19. b4 {[%clk 0:02:32]}  axb3 {[%clk 0:01:50]} 20. Rxb3 {[%clk 0:02:32]}  Bb7 {[%clk 0:01:32]} 21. Rfb1 {[%clk 0:02:26]}  Rxb3 {[%clk 0:01:27]} 22. Rxb3 {[%clk 0:02:27]}  Ba8 {[%clk 0:01:27]} 23. h4 {[%clk 0:02:24]}  Qd6 {[%clk 0:01:27]} 24. Rb4 {[%clk 0:02:11]}  c5 {[%clk 0:01:17]} 25. Rc4 {[%clk 0:02:11]}  Bxg2 {[%clk 0:01:16]} 26. Kxg2 {[%clk 0:02:12]}  Qd5+ {[%clk 0:00:54]} 27. f3 {[%clk 0:02:11]}  Re6 {[%clk 0:00:44]} 28. Rxc5 {[%clk 0:02:11]}  Qa2 {[%clk 0:00:43]} 29. Rxe5 {[%clk 0:02:08]} 1-0


[Site "https://www.chess.com"]